[Event "Live Chess"]
[Site "Chess.com"]
[Date "2023.05.20"]
[Round "-"]
[White "SupremeTactician"]
[Black "chessfiction"]
[Result "0-1"]
[WhiteElo "2366"]
[BlackElo "2429"]
[TimeControl "300"]
[EndTime "13:10:56 PDT"]
[Termination "chessfiction won by resignation"]

1. e4 {[%clk 0:04:57.7]} 1... d6 {[%clk 0:04:58]} 2. d4 {[%clk 0:04:56.7]} 2...
Nf6 {[%clk 0:04:57.1]} 3. Nc3 {[%clk 0:04:56.1]} 3... c6 {[%clk 0:04:56.7]} 4.
f4 {[%clk 0:04:55]} 4... Qa5 {[%clk 0:04:54.4]} 5. Bd3 {[%clk 0:04:52]} 5... e5
{[%clk 0:04:52.9]} 6. fxe5 {[%clk 0:04:51]} 6... dxe5 {[%clk 0:04:50.9]} 7. dxe5
{[%clk 0:04:50.7]} 7... Ng4 {[%clk 0:04:49]} 8. Nf3 {[%clk 0:04:48.9]} 8... Bc5
{[%clk 0:04:44.5]} 9. Qe2 {[%clk 0:04:42.5]} 9... Bf2+ {[%clk 0:04:38.6]} 10.
Qxf2 {[%clk 0:04:11.3]} 10... Nxf2 {[%clk 0:04:36.7]} 11. Kxf2 {[%clk
0:04:11.2]} 11... Nd7 {[%clk 0:04:34.9]} 12. Bf4 {[%clk 0:04:09.6]} 12... Nc5
{[%clk 0:04:34]} 13. Rhd1 {[%clk 0:04:05.5]} 13... Bg4 {[%clk 0:04:32.3]} 14. h3
{[%clk 0:04:04.3]} 14... Bxf3 {[%clk 0:04:30.9]} 15. gxf3 {[%clk 0:04:04.2]}
15... O-O-O {[%clk 0:04:29.8]} 16. Be3 {[%clk 0:04:00.9]} 16... Nxd3+ {[%clk
0:04:28.2]} 17. Rxd3 {[%clk 0:04:00.8]} 17... Qxe5 {[%clk 0:04:24.5]} 18. f4
{[%clk 0:03:58.2]} 18... Qh5 {[%clk 0:04:23]} 19. Kg2 {[%clk 0:03:49.4]} 19...
Rxd3 {[%clk 0:04:21.9]} 20. cxd3 {[%clk 0:03:49.1]} 20... Rd8 {[%clk 0:04:20.3]}
21. Rd1 {[%clk 0:03:47.8]} 21... f5 {[%clk 0:04:16.3]} 22. e5 {[%clk 0:03:43.7]}
22... g5 {[%clk 0:04:15.4]} 23. fxg5 {[%clk 0:03:39.5]} 23... h6 {[%clk
0:04:13.9]} 24. gxh6 {[%clk 0:03:35]} 24... Rg8+ {[%clk 0:04:12]} 25. Kh2 {[%clk
0:03:34.4]} 25... Qf3 {[%clk 0:04:10.2]} 26. Rg1 {[%clk 0:03:33.3]} 26... Rxg1
{[%clk 0:03:55.8]} 27. Bxg1 {[%clk 0:03:32.7]} 27... Qf4+ {[%clk 0:03:55.4]} 28.
Kg2 {[%clk 0:03:32.4]} 28... Qxh6 {[%clk 0:03:55.2]} 29. d4 {[%clk 0:03:25.5]}
29... Qd2+ {[%clk 0:03:53.6]} 30. Kf3 {[%clk 0:03:25.1]} 30... Qxb2 {[%clk
0:03:52.4]} 31. Ne2 {[%clk 0:03:23.8]} 31... Qxa2 {[%clk 0:03:51.1]} 32. Ng3
{[%clk 0:03:22.7]} 32... Qd5+ {[%clk 0:03:47.3]} 33. Kf4 {[%clk 0:03:21]} 33...
Qg2 {[%clk 0:03:46.7]} 34. Be3 {[%clk 0:03:19.3]} 34... Qxh3 {[%clk 0:03:45.5]}
35. Nxf5 {[%clk 0:03:18.7]} 35... a5 {[%clk 0:03:40.9]} 36. e6 {[%clk
0:03:18.1]} 36... Qh2+ {[%clk 0:03:37]} 37. Ke4 {[%clk 0:03:16.1]} 37... Qh1+
{[%clk 0:03:33.3]} 38. Ke5 {[%clk 0:03:14.9]} 38... Qd5+ {[%clk 0:03:32.6]} 39.
Kf6 {[%clk 0:03:14.5]} 39... Kd8 {[%clk 0:03:23.4]} 40. e7+ {[%clk 0:03:12.8]}
40... Kd7 {[%clk 0:03:21.1]} 41. Ng7 {[%clk 0:02:56.9]} 41... Qf3+ {[%clk
0:03:17.8]} 42. Kg6 {[%clk 0:02:51.4]} 42... Qxe3 {[%clk 0:03:15.7]} 43. e8=Q+
{[%clk 0:02:48.1]} 43... Qxe8+ {[%clk 0:03:15.2]} 44. Nxe8 {[%clk 0:02:47.9]}
44... Kxe8 {[%clk 0:03:14.8]} 0-1

[Event "Live Chess"]
[Site "Chess.com"]
[Date "2023.05.20"]
[Round "-"]
[White "Wild_Tiger"]
[Black "ExIsambard"]
[Result "0-1"]
[WhiteElo "1056"]
[BlackElo "1991"]
[TimeControl "300"]
[EndTime "13:10:57 PDT"]
[Termination "ExIsambard won by resignation"]

1. d4 {[%clk 0:04:58.6]} 1... Nf6 {[%clk 0:04:57]} 2. Nf3 {[%clk 0:04:58.5]}
2... d5 {[%clk 0:04:55.6]} 3. e3 {[%clk 0:04:58]} 3... c6 {[%clk 0:04:54.9]} 4.
Bd3 {[%clk 0:04:57.5]} 4... Bg4 {[%clk 0:04:54.1]} 5. Nbd2 {[%clk 0:04:55]} 5...
e6 {[%clk 0:04:53.5]} 6. b3 {[%clk 0:04:53.9]} 6... Bd6 {[%clk 0:04:52.7]} 7.
Bb2 {[%clk 0:04:53.4]} 7... Nbd7 {[%clk 0:04:50.9]} 8. O-O {[%clk 0:04:52.3]}
8... h5 {[%clk 0:04:49.6]} 9. h3 {[%clk 0:04:46]} 9... Qe7 {[%clk 0:04:46.1]}
10. hxg4 {[%clk 0:04:44]} 10... hxg4 {[%clk 0:04:44.9]} 11. Ne5 {[%clk
0:04:38.8]} 11... O-O-O {[%clk 0:04:33.8]} 12. c4 {[%clk 0:04:32.2]} 12... Ne4
{[%clk 0:04:11.1]} 13. c5 {[%clk 0:04:17.3]} 13... Qh4 {[%clk 0:04:05.9]} 0-1

[Event "Live Chess"]
[Site "Chess.com"]
[Date "2023.05.20"]
[Round "-"]
[White "Nicckui"]
[Black "Delacorta"]
[Result "1-0"]
[WhiteElo "1774"]
[BlackElo "1446"]
[TimeControl "300"]
[EndTime "13:11:09 PDT"]
[Termination "Nicckui won by resignation"]

1. e4 {[%clk 0:04:55.5]} 1... e6 {[%clk 0:04:59.2]} 2. Nc3 {[%clk 0:04:55.1]}
2... d5 {[%clk 0:04:56.5]} 3. exd5 {[%clk 0:04:54.4]} 3... exd5 {[%clk
0:04:56.4]} 4. Bb5+ {[%clk 0:04:53.1]} 4... c6 {[%clk 0:04:55.6]} 5. Be2 {[%clk
0:04:51.9]} 5... Nf6 {[%clk 0:04:54.8]} 6. d4 {[%clk 0:04:51.4]} 6... Bd6 {[%clk
0:04:53.8]} 7. Nf3 {[%clk 0:04:51.3]} 7... O-O {[%clk 0:04:52.7]} 8. Bg5 {[%clk
0:04:51]} 8... Bg4 {[%clk 0:04:49.5]} 9. O-O {[%clk 0:04:50.2]} 9... Nbd7 {[%clk
0:04:47.6]} 10. h3 {[%clk 0:04:49.6]} 10... Bxf3 {[%clk 0:04:46.9]} 11. Bxf3
{[%clk 0:04:49.3]} 11... Qc7 {[%clk 0:04:45.7]} 12. Bxf6 {[%clk 0:04:48.1]}
12... Nxf6 {[%clk 0:04:44.3]} 13. Re1 {[%clk 0:04:48]} 13... Rfe8 {[%clk
0:04:42.8]} 14. Qd3 {[%clk 0:04:47.6]} 14... Rxe1+ {[%clk 0:04:39.9]} 15. Rxe1
{[%clk 0:04:47.5]} 15... Re8 {[%clk 0:04:38.8]} 16. Rxe8+ {[%clk 0:04:45.3]}
16... Nxe8 {[%clk 0:04:38]} 17. Qf5 {[%clk 0:04:41]} 17... g6 {[%clk 0:04:23.8]}
18. Qd3 {[%clk 0:04:36.2]} 18... Ng7 {[%clk 0:04:19.4]} 19. Nd1 {[%clk
0:04:33.2]} 19... Nf5 {[%clk 0:04:08.2]} 20. c3 {[%clk 0:04:32.3]} 20... Qa5
{[%clk 0:04:00.5]} 21. a3 {[%clk 0:04:30.5]} 21... Qb6 {[%clk 0:03:55.7]} 22.
Qd2 {[%clk 0:04:13.9]} 22... Bf8 {[%clk 0:03:43.6]} 23. Bg4 {[%clk 0:04:11.6]}
23... Ne7 {[%clk 0:03:24]} 24. Qe2 {[%clk 0:04:05.1]} 24... f5 {[%clk
0:03:17.6]} 25. Bf3 {[%clk 0:03:50.8]} 25... Kf7 {[%clk 0:03:07.4]} 26. g4
{[%clk 0:03:31.6]} 26... Qc7 {[%clk 0:02:53.5]} 27. gxf5 {[%clk 0:03:25]} 27...
Nxf5 {[%clk 0:02:47.9]} 28. Bg4 {[%clk 0:03:20.5]} 28... Qf4 {[%clk 0:02:37.3]}
29. Bxf5 {[%clk 0:03:15.4]} 29... Qxf5 {[%clk 0:02:33.3]} 30. Ne3 {[%clk
0:03:14.5]} 30... Qxh3 {[%clk 0:02:31.5]} 31. Qg4 {[%clk 0:03:11.8]} 31... Qxg4+
{[%clk 0:02:29.6]} 32. Nxg4 {[%clk 0:03:11.7]} 32... Bg7 {[%clk 0:02:28.4]} 33.
Kg2 {[%clk 0:03:10.1]} 33... h5 {[%clk 0:02:27.4]} 34. Ne3 {[%clk 0:03:08.9]}
34... Kf6 {[%clk 0:02:26]} 35. Kf3 {[%clk 0:03:08.4]} 35... g5 {[%clk
0:02:18.5]} 36. Ng2 {[%clk 0:03:02.7]} 36... Kf5 {[%clk 0:02:13.5]} 37. Ne3+
{[%clk 0:03:00.9]} 37... Ke6 {[%clk 0:02:12.4]} 38. Nf1 {[%clk 0:02:53.5]} 38...
Bh6 {[%clk 0:02:08.2]} 39. Ng3 {[%clk 0:02:48.1]} 39... g4+ {[%clk 0:02:01.8]}
40. Kg2 {[%clk 0:02:39.8]} 40... h4 {[%clk 0:02:00.3]} 41. Ne2 {[%clk
0:02:38.4]} 41... Bc1 {[%clk 0:01:55.6]} 42. Nxc1 {[%clk 0:02:36.8]} 42... Kf5
{[%clk 0:01:53.5]} 43. f3 {[%clk 0:02:32.1]} 43... Kf4 {[%clk 0:01:47.9]} 44.
Ne2+ {[%clk 0:02:29.6]} 44... Ke3 {[%clk 0:01:43.9]} 45. fxg4 {[%clk 0:02:28.5]}
45... Ke4 {[%clk 0:01:35.5]} 46. Kh3 {[%clk 0:02:23.2]} 1-0

[Event "Live Chess"]
[Site "Chess.com"]
[Date "2023.05.20"]
[Round "-"]
[White "EdvancedChess"]
[Black "Nazar_777"]
[Result "1-0"]
[WhiteElo "1900"]
[BlackElo "1575"]
[TimeControl "300"]
[EndTime "13:11:20 PDT"]
[Termination "EdvancedChess won by checkmate"]

1. e4 {[%clk 0:04:58.9]} 1... e6 {[%clk 0:04:49]} 2. Nf3 {[%clk 0:04:55]} 2...
a6 {[%clk 0:04:47.1]} 3. d4 {[%clk 0:04:54]} 3... h5 {[%clk 0:04:46.1]} 4. c4
{[%clk 0:04:53.2]} 4... c5 {[%clk 0:04:45.2]} 5. d5 {[%clk 0:04:51.7]} 5... Nf6
{[%clk 0:04:44.2]} 6. Nc3 {[%clk 0:04:50.5]} 6... Qc7 {[%clk 0:04:43.2]} 7. e5
{[%clk 0:04:46]} 7... Ng8 {[%clk 0:04:41.7]} 8. d6 {[%clk 0:04:44.8]} 8... Qd8
{[%clk 0:04:41.1]} 9. Be3 {[%clk 0:04:37.5]} 9... Nc6 {[%clk 0:04:40.1]} 10.
Bxc5 {[%clk 0:04:36.1]} 10... Qa5 {[%clk 0:04:38.5]} 11. Be3 {[%clk 0:04:34]}
11... Qd8 {[%clk 0:04:36.9]} 12. Qb3 {[%clk 0:04:31.2]} 12... Nh6 {[%clk
0:04:30]} 13. Bb6 {[%clk 0:04:26.1]} 13... Ng4 {[%clk 0:04:19.7]} 14. Bxd8
{[%clk 0:04:24.2]} 14... Nxd8 {[%clk 0:04:17.6]} 15. h3 {[%clk 0:04:17.4]} 15...
Nh6 {[%clk 0:04:16]} 16. Bd3 {[%clk 0:04:15.8]} 16... Nc6 {[%clk 0:04:15.2]} 17.
Ne4 {[%clk 0:04:14.4]} 17... Nf5 {[%clk 0:04:08.7]} 18. Nc5 {[%clk 0:04:10.5]}
18... Rb8 {[%clk 0:04:04.9]} 19. Nxa6 {[%clk 0:04:08.5]} 19... bxa6 {[%clk
0:04:01.3]} 20. Qa4 {[%clk 0:04:07.4]} 20... Rb7 {[%clk 0:03:57.5]} 21. b3
{[%clk 0:04:04.8]} 21... Rb8 {[%clk 0:03:55.5]} 22. Bxf5 {[%clk 0:04:02.9]}
22... exf5 {[%clk 0:03:53.6]} 23. O-O {[%clk 0:04:02.8]} 23... a5 {[%clk
0:03:51.8]} 24. Rfe1 {[%clk 0:03:57.2]} 24... g6 {[%clk 0:03:49]} 25. Rad1
{[%clk 0:03:52.4]} 25... Bb7 {[%clk 0:03:47.5]} 26. Nd4 {[%clk 0:03:48.1]} 26...
Bh6 {[%clk 0:03:42.8]} 27. Nxc6 {[%clk 0:03:46.2]} 27... Bxc6 {[%clk 0:03:41.7]}
28. Qxa5 {[%clk 0:03:45.8]} 28... Rd8 {[%clk 0:03:39.9]} 29. b4 {[%clk
0:03:43.7]} 29... O-O {[%clk 0:03:38.5]} 30. b5 {[%clk 0:03:42.7]} 30... Ra8
{[%clk 0:03:37.2]} 31. Qb4 {[%clk 0:03:38.9]} 31... Bb7 {[%clk 0:03:35]} 32. a4
{[%clk 0:03:37.6]} 32... g5 {[%clk 0:03:26.1]} 33. c5 {[%clk 0:03:36.3]} 33...
g4 {[%clk 0:03:24.5]} 34. hxg4 {[%clk 0:03:32.6]} 34... hxg4 {[%clk 0:03:23.1]}
35. a5 {[%clk 0:03:32.1]} 35... Bf4 {[%clk 0:03:20.5]} 36. a6 {[%clk 0:03:31.1]}
36... Be4 {[%clk 0:03:13.5]} 37. Rxe4 {[%clk 0:03:29.4]} 37... fxe4 {[%clk
0:03:10.9]} 38. Qxe4 {[%clk 0:03:29]} 38... Bg5 {[%clk 0:03:05.5]} 39. Qxg4
{[%clk 0:03:28.2]} 39... f6 {[%clk 0:02:56.6]} 40. exf6 {[%clk 0:03:27.1]} 40...
Kf7 {[%clk 0:02:55.4]} 41. Qxd7+ {[%clk 0:03:25.9]} 41... Kxf6 {[%clk
0:02:53.4]} 42. Qe7+ {[%clk 0:03:24.5]} 42... Kg6 {[%clk 0:02:51.8]} 43. Qe6+
{[%clk 0:03:23.1]} 43... Bf6 {[%clk 0:02:49.9]} 44. Qe4+ {[%clk 0:03:22]} 44...
Kg7 {[%clk 0:02:45.7]} 45. c6 {[%clk 0:03:21.3]} 45... Rh8 {[%clk 0:02:44.5]}
46. d7 {[%clk 0:03:20.2]} 46... Rh6 {[%clk 0:02:43.6]} 47. c7 {[%clk 0:03:17.2]}
47... Rah8 {[%clk 0:02:42.1]} 48. g3 {[%clk 0:03:15.2]} 48... Rh1+ {[%clk
0:02:36]} 49. Qxh1 {[%clk 0:03:14.8]} 49... Rxh1+ {[%clk 0:02:34.7]} 50. Kxh1
{[%clk 0:03:14.7]} 50... Kg6 {[%clk 0:02:32]} 51. d8=Q {[%clk 0:03:13.6]} 51...
Bxd8 {[%clk 0:02:30.5]} 52. cxd8=Q {[%clk 0:03:11.7]} 52... Kf5 {[%clk
0:02:29.8]} 53. Qd4 {[%clk 0:03:09.4]} 53... Kg6 {[%clk 0:02:28.4]} 54. Re1
{[%clk 0:03:08.8]} 54... Kf5 {[%clk 0:02:27.3]} 55. Re5+ {[%clk 0:03:08.3]}
55... Kg6 {[%clk 0:02:26.3]} 56. Qd6+ {[%clk 0:03:08.1]} 56... Kf7 {[%clk
0:02:25.5]} 57. Re7+ {[%clk 0:03:08]} 57... Kg8 {[%clk 0:02:24.9]} 58. Qd8#
{[%clk 0:03:07.9]} 1-0

[Event "Live Chess"]
[Site "Chess.com"]
[Date "2023.05.20"]
[Round "-"]
[White "Lewstar1"]
[Black "booktrunk"]
[Result "0-1"]
[WhiteElo "453"]
[BlackElo "1290"]
[TimeControl "300"]
[EndTime "13:11:25 PDT"]
[Termination "booktrunk won by resignation"]

1. e4 {[%clk 0:04:54.2]} 1... d5 {[%clk 0:04:59.9]} 2. Nf3 {[%clk 0:04:50.8]}
2... dxe4 {[%clk 0:04:58.6]} 3. Ng5 {[%clk 0:04:50.3]} 3... Bf5 {[%clk
0:04:55.5]} 4. d3 {[%clk 0:04:45.5]} 4... exd3 {[%clk 0:04:54.1]} 5. Bxd3 {[%clk
0:04:44]} 5... Bxd3 {[%clk 0:04:53.1]} 6. Qxd3 {[%clk 0:04:43.6]} 6... Qxd3
{[%clk 0:04:51.7]} 7. cxd3 {[%clk 0:04:43.5]} 7... h6 {[%clk 0:04:50.3]} 8. Ne4
{[%clk 0:04:35.2]} 8... Nc6 {[%clk 0:04:48.5]} 9. Bf4 {[%clk 0:04:22.3]} 9...
O-O-O {[%clk 0:04:45.5]} 10. Nbc3 {[%clk 0:04:19]} 10... g5 {[%clk 0:04:43.2]}
11. Be3 {[%clk 0:04:12.9]} 11... Rxd3 {[%clk 0:04:37.3]} 12. Nc5 {[%clk
0:03:58.7]} 12... Rd6 {[%clk 0:04:30.3]} 13. N5e4 {[%clk 0:03:55.8]} 13... Re6
{[%clk 0:04:28.4]} 14. Nc5 {[%clk 0:03:53.7]} 14... Re5 {[%clk 0:04:27]} 15. Nd3
{[%clk 0:03:51]} 15... Ra5 {[%clk 0:04:22.6]} 16. b4 {[%clk 0:03:45.3]} 16...
Ra3 {[%clk 0:04:20]} 17. Nb5 {[%clk 0:03:35]} 17... Rxd3 {[%clk 0:04:16.6]} 18.
Bxa7 {[%clk 0:03:34.9]} 18... Nxa7 {[%clk 0:04:13]} 19. Nxa7+ {[%clk 0:03:34.8]}
19... Kb8 {[%clk 0:04:11.9]} 20. Nb5 {[%clk 0:03:31.9]} 20... e6 {[%clk
0:04:10.7]} 21. O-O {[%clk 0:03:26]} 21... Bxb4 {[%clk 0:04:05.5]} 22. Rfd1
{[%clk 0:03:22.7]} 22... Rxd1+ {[%clk 0:04:03.8]} 23. Rxd1 {[%clk 0:03:22.6]}
23... Nf6 {[%clk 0:04:02]} 24. h3 {[%clk 0:03:14.7]} 24... Re8 {[%clk
0:03:53.3]} 25. Kh2 {[%clk 0:03:05.8]} 25... c6 {[%clk 0:03:52]} 26. Nd4 {[%clk
0:02:51.6]} 26... Bc5 {[%clk 0:03:39.8]} 27. Nb3 {[%clk 0:02:38.9]} 27... Bxf2
{[%clk 0:03:36.7]} 28. Rd2 {[%clk 0:02:37.4]} 28... Bb6 {[%clk 0:03:32.3]} 29.
g4 {[%clk 0:02:32.9]} 29... Nd5 {[%clk 0:03:28.6]} 30. Kg3 {[%clk 0:02:30.3]}
30... f5 {[%clk 0:03:26.7]} 31. gxf5 {[%clk 0:02:25.3]} 31... exf5 {[%clk
0:03:25.9]} 32. h4 {[%clk 0:02:22.9]} 32... Re3+ {[%clk 0:03:18.1]} 33. Kf2
{[%clk 0:02:14.2]} 33... Rxb3+ {[%clk 0:03:16.2]} 34. Ke2 {[%clk 0:02:06]} 34...
gxh4 {[%clk 0:03:09.6]} 35. axb3 {[%clk 0:02:01.1]} 35... Nf4+ {[%clk
0:03:08.6]} 36. Kf3 {[%clk 0:01:53.1]} 36... Nd5 {[%clk 0:03:04.1]} 37. Kg2
{[%clk 0:01:46.9]} 37... Bc7 {[%clk 0:02:58.5]} 38. Kh3 {[%clk 0:01:44.5]} 38...
Bd8 {[%clk 0:02:53.7]} 39. Rd1 {[%clk 0:01:30.8]} 39... f4 {[%clk 0:02:52.2]}
40. Rf1 {[%clk 0:01:27.9]} 40... Kc7 {[%clk 0:02:49.8]} 41. Rg1 {[%clk
0:01:20.8]} 41... Kb6 {[%clk 0:02:46.1]} 42. Rg6 {[%clk 0:01:16.9]} 42... Bg5
{[%clk 0:02:44.4]} 43. Kg4 {[%clk 0:01:04.3]} 43... Kb5 {[%clk 0:02:42.5]} 44.
Rg7 {[%clk 0:00:57.3]} 44... Ne7 {[%clk 0:02:38.5]} 45. Rf7 {[%clk 0:00:31.9]}
45... Kb4 {[%clk 0:02:36.2]} 46. Rf8 {[%clk 0:00:17.6]} 46... Kxb3 {[%clk
0:02:35.2]} 47. Rb8 {[%clk 0:00:17.1]} 47... b5 {[%clk 0:02:34.4]} 48. Rb6
{[%clk 0:00:15.4]} 48... Kc4 {[%clk 0:02:32.1]} 0-1

[Event "Live Chess"]
[Site "Chess.com"]
[Date "2023.05.20"]
[Round "-"]
[White "Ian-Morley"]
[Black "friarnator"]
[Result "0-1"]
[WhiteElo "975"]
[BlackElo "1987"]
[TimeControl "300"]
[EndTime "13:11:46 PDT"]
[Termination "friarnator won by checkmate"]

1. e4 {[%clk 0:04:58.3]} 1... e5 {[%clk 0:04:57.6]} 2. Nf3 {[%clk 0:04:53.9]}
2... Nc6 {[%clk 0:04:56.9]} 3. Bc4 {[%clk 0:04:51.7]} 3... Nf6 {[%clk
0:04:55.6]} 4. Ng5 {[%clk 0:04:49.8]} 4... d5 {[%clk 0:04:54.3]} 5. exd5 {[%clk
0:04:47.5]} 5... Nd4 {[%clk 0:04:53.7]} 6. c3 {[%clk 0:04:39.9]} 6... b5 {[%clk
0:04:51.9]} 7. cxd4 {[%clk 0:04:38]} 7... bxc4 {[%clk 0:04:50.6]} 8. Nc3 {[%clk
0:04:35.2]} 8... exd4 {[%clk 0:04:46.9]} 9. Nce4 {[%clk 0:04:04.2]} 9... Nxe4
{[%clk 0:04:42.7]} 10. Nxe4 {[%clk 0:04:03.2]} 10... Qxd5 {[%clk 0:04:41.9]} 11.
Qe2 {[%clk 0:03:59.8]} 11... Be6 {[%clk 0:04:37.3]} 12. b3 {[%clk 0:03:55.5]}
12... d3 {[%clk 0:04:33.9]} 13. Qd1 {[%clk 0:03:49]} 13... Qxe4+ {[%clk
0:04:32]} 14. Kf1 {[%clk 0:03:46.7]} 14... Bc5 {[%clk 0:04:29.6]} 15. Qe1 {[%clk
0:03:42.1]} 15... Qf5 {[%clk 0:04:12.4]} 16. Bb2 {[%clk 0:03:28.7]} 16... O-O
{[%clk 0:04:11]} 17. Rg1 {[%clk 0:03:18.6]} 17... Rfe8 {[%clk 0:04:06.4]} 18.
bxc4 {[%clk 0:02:56]} 18... Bxc4 {[%clk 0:03:58.2]} 19. Qd1 {[%clk 0:02:50.2]}
19... Qxf2# {[%clk 0:03:56.2]} 0-1

[Event "Live Chess"]
[Site "Chess.com"]
[Date "2023.05.20"]
[Round "-"]
[White "OSmith06"]
[Black "Richardallis"]
[Result "0-1"]
[WhiteElo "1659"]
[BlackElo "1824"]
[TimeControl "300"]
[EndTime "13:11:47 PDT"]
[Termination "Richardallis won by resignation"]

1. e4 {[%clk 0:04:58.5]} 1... d5 {[%clk 0:04:41.9]} 2. exd5 {[%clk 0:04:57.5]}
2... Nf6 {[%clk 0:04:37.3]} 3. Nf3 {[%clk 0:04:54.4]} 3... Nxd5 {[%clk 0:04:32]}
4. d4 {[%clk 0:04:53.8]} 4... Bg4 {[%clk 0:04:30.6]} 5. Be2 {[%clk 0:04:52.3]}
5... Nd7 {[%clk 0:04:28.8]} 6. c4 {[%clk 0:04:50.3]} 6... N5f6 {[%clk 0:04:27]}
7. O-O {[%clk 0:04:45.2]} 7... e6 {[%clk 0:04:26]} 8. Nc3 {[%clk 0:04:43]} 8...
c6 {[%clk 0:04:24.9]} 9. h3 {[%clk 0:04:39.1]} 9... Bxf3 {[%clk 0:04:22.4]} 10.
Bxf3 {[%clk 0:04:39]} 10... Bd6 {[%clk 0:04:14.3]} 11. Re1 {[%clk 0:04:34.5]}
11... O-O {[%clk 0:04:12.1]} 12. a3 {[%clk 0:04:31.7]} 12... a5 {[%clk
0:04:10.3]} 13. Be3 {[%clk 0:04:27.5]} 13... Rc8 {[%clk 0:04:08.2]} 14. Ne4
{[%clk 0:04:20.3]} 14... Nxe4 {[%clk 0:04:05.8]} 15. Bxe4 {[%clk 0:04:20.2]}
15... Nf6 {[%clk 0:04:04.9]} 16. Bc2 {[%clk 0:04:12]} 16... h6 {[%clk
0:04:01.8]} 17. Qd3 {[%clk 0:04:06.9]} 17... Bb8 {[%clk 0:03:55.5]} 18. d5
{[%clk 0:03:55.1]} 18... cxd5 {[%clk 0:03:45.8]} 19. cxd5 {[%clk 0:03:49.9]}
19... Qxd5 {[%clk 0:03:43.6]} 20. Qxd5 {[%clk 0:03:40.9]} 20... Nxd5 {[%clk
0:03:39.1]} 21. Be4 {[%clk 0:03:33.3]} 21... Nxe3 {[%clk 0:03:31.9]} 22. Rxe3
{[%clk 0:03:31.8]} 22... b6 {[%clk 0:03:30.9]} 23. Rd3 {[%clk 0:03:25.8]} 23...
Rfd8 {[%clk 0:03:27.3]} 24. Rad1 {[%clk 0:03:22.8]} 24... Rxd3 {[%clk
0:03:25.9]} 25. Rxd3 {[%clk 0:03:22.7]} 25... Rc1+ {[%clk 0:03:24.3]} 0-1

[Event "Live Chess"]
[Site "Chess.com"]
[Date "2023.05.20"]
[Round "-"]
[White "Missedidea"]
[Black "LiamBellwood"]
[Result "0-1"]
[WhiteElo "1728"]
[BlackElo "2056"]
[TimeControl "300"]
[EndTime "13:11:51 PDT"]
[Termination "LiamBellwood won by checkmate"]

1. d4 {[%clk 0:04:58.4]} 1... e6 {[%clk 0:04:59.9]} 2. c4 {[%clk 0:04:56.6]}
2... f5 {[%clk 0:04:59.2]} 3. Nc3 {[%clk 0:04:55]} 3... Nf6 {[%clk 0:04:58.1]}
4. g3 {[%clk 0:04:54]} 4... Bb4 {[%clk 0:04:57.5]} 5. Bg2 {[%clk 0:04:51.6]}
5... O-O {[%clk 0:04:50.8]} 6. Bd2 {[%clk 0:04:49.5]} 6... d6 {[%clk 0:04:48.8]}
7. Nf3 {[%clk 0:04:46.6]} 7... Bxc3 {[%clk 0:04:47.6]} 8. Bxc3 {[%clk
0:04:42.4]} 8... Ne4 {[%clk 0:04:47.5]} 9. Qc2 {[%clk 0:04:39]} 9... Nd7 {[%clk
0:04:46.4]} 10. Bb4 {[%clk 0:04:34.8]} 10... a5 {[%clk 0:04:31.3]} 11. Ba3
{[%clk 0:04:32.3]} 11... Re8 {[%clk 0:04:29.6]} 12. O-O {[%clk 0:04:28.8]} 12...
e5 {[%clk 0:04:21.4]} 13. b3 {[%clk 0:04:20.5]} 13... Qf6 {[%clk 0:04:03.6]} 14.
Bb2 {[%clk 0:04:18.2]} 14... Qh6 {[%clk 0:03:49.8]} 15. dxe5 {[%clk 0:04:09.9]}
15... Nxe5 {[%clk 0:03:42.6]} 16. Nxe5 {[%clk 0:04:07.9]} 16... dxe5 {[%clk
0:03:42.2]} 17. Bxe4 {[%clk 0:04:05.5]} 17... fxe4 {[%clk 0:03:41]} 18. Qxe4
{[%clk 0:04:02.6]} 18... Bh3 {[%clk 0:03:33.9]} 19. Rfd1 {[%clk 0:03:58.1]}
19... c6 {[%clk 0:03:13.2]} 20. c5 {[%clk 0:03:51.3]} 20... Re6 {[%clk
0:02:40.2]} 21. Rd6 {[%clk 0:03:47.6]} 21... Rae8 {[%clk 0:02:39.5]} 22. Rad1
{[%clk 0:03:43.4]} 22... Qf6 {[%clk 0:02:29.5]} 23. Bc3 {[%clk 0:03:21.9]} 23...
Bf5 {[%clk 0:02:21.2]} 24. Qe3 {[%clk 0:03:16.6]} 24... Qe7 {[%clk 0:02:15.8]}
25. Bxa5 {[%clk 0:03:09.6]} 25... Rxd6 {[%clk 0:01:44.1]} 26. Rxd6 {[%clk
0:02:57.2]} 26... e4 {[%clk 0:01:25.8]} 27. Bc3 {[%clk 0:02:50.4]} 27... Ra8
{[%clk 0:01:16.4]} 28. a4 {[%clk 0:02:48.5]} 28... Qf7 {[%clk 0:01:12.2]} 29.
Bd4 {[%clk 0:02:38.8]} 29... Be6 {[%clk 0:01:06.7]} 30. Qg5 {[%clk 0:02:19.2]}
30... Bxb3 {[%clk 0:00:48.1]} 31. Rd8+ {[%clk 0:01:58.5]} 31... Rxd8 {[%clk
0:00:47.7]} 32. Qxd8+ {[%clk 0:01:55.5]} 32... Qf8 {[%clk 0:00:47.6]} 33. Qb6
{[%clk 0:01:45]} 33... Bxa4 {[%clk 0:00:44.6]} 34. Qxb7 {[%clk 0:01:43.7]} 34...
Bb5 {[%clk 0:00:42.8]} 35. e3 {[%clk 0:01:32.1]} 35... h6 {[%clk 0:00:39.2]} 36.
Kg2 {[%clk 0:01:30.4]} 36... Qf3+ {[%clk 0:00:34.9]} 37. Kg1 {[%clk 0:01:28.7]}
37... Qd1+ {[%clk 0:00:33.3]} 38. Kg2 {[%clk 0:01:27]} 38... Bf1+ {[%clk
0:00:32.4]} 39. Kg1 {[%clk 0:01:19.6]} 39... Bh3# {[%clk 0:00:32.3]} 0-1